bitfinex-derivatives/quotes_SOLF0:USTF0_20250914
["timestamp","ask_amount","ask_price","bid_price","bid_amount"]
[1757839176831,3.6,246.7,246.63,6.79]
[1757839177030,2.84559731,246.69,246.63,6.79]
[1757839177333,2.84559731,246.68,246.62,0.02968686]
[1757839177531,3.6,246.7,246.63,6.79]
[1757839177733,2.84564897,246.69,246.63,6.79]
[1757839177930,2.84564897,246.68,246.63,6.79]
[1757839178135,3.6,246.7,246.63,6.79]
[1757839178335,2.8456791,246.69,246.63,6.79]
[1757839178537,2.8456791,246.68,246.62,0.02968686]
[1757839178841,3.6,246.7,246.63,6.79]
[1757839179043,2.8456791,246.69,246.63,6.79]
[1757839179341,2.8456791,246.68,246.63,6.79]
[1757839179542,3.6,246.7,246.62,0.02968686]
[1757839179736,3.6,246.68,246.62,0.02968686]
[1757839179937,1.30144487,246.71,246.63,6.79]
[1757839180239,2.84570035,246.7,246.63,6.79]
[1757839180434,2.84570035,246.69,246.63,6.79]
[1757839180638,1.30144487,246.71,246.63,6.79]
[1757839180639,2.84570035,246.68,246.63,6.79]
[1757839180838,1.30144487,246.71,246.63,6.79]
[1757839181041,2.84570696,246.7,246.63,6.79]
[1757839181241,2.84570696,246.69,246.63,6.79]
[1757839181543,2.84570696,246.68,246.63,6.79]
[1757839181742,1.30144487,246.71,246.63,6.79]
[1757839181942,2.84571374,246.7,246.63,6.79]
[1757839182141,2.84571374,246.69,246.63,6.79]
[1757839182446,2.84571374,246.68,246.63,6.79]
[1757839182743,1.30144487,246.71,246.63,6.79]
[1757839182943,2.84572072,246.7,246.63,6.79]
[1757839183133,2.84572072,246.69,246.63,6.79]
[1757839183334,2.84572072,246.68,246.62,0.02968686]
[1757839183544,1.30144487,246.71,246.63,6.79]
[1757839183743,2.84573658,246.7,246.63,6.79]
[1757839183943,2.84573658,246.69,246.63,6.79]
[1757839184134,2.84573658,246.68,246.62,0.02968686]
[1757839184335,1.30144487,246.71,246.63,6.79]
[1757839184536,2.84574422,246.7,246.63,6.79]
[1757839184836,2.84574422,246.69,246.63,6.79]
[1757839185037,2.84574422,246.68,246.62,0.02968686]
[1757839185236,1.30144487,246.71,246.63,6.79]
[1757839185440,6.44582782,246.7,246.63,6.79]
[1757839185736,2.84582782,246.69,246.63,6.79]
[1757839186048,2.84582782,246.68,246.62,6.81968686]
[1757839186250,3.6,246.69,246.62,6.81968686]
[1757839186448,2.84592604,246.68,246.62,6.81968686]
[1757839186648,3.6,246.69,246.62,6.81968686]
[1757839186846,2.84596121,246.68,246.62,6.81968686]
[1757839187046,3.6,246.69,246.62,6.81968686]
[1757839187248,2.84594428,246.68,246.62,6.81968686]
[1757839187542,3.6,246.69,246.62,6.81968686]
[1757839187751,2.84598941,246.68,246.62,6.81968686]
[1757839187944,3.6,246.66,246.62,6.81968686]
[1757839188141,3.6,246.7,246.62,6.81968686]
[1757839188341,3.6,246.68,246.62,6.81968686]
[1757839188541,2.84622711,246.67,246.62,6.81968686]
[1757839188749,3.6,246.65,246.62,6.81968686]
[1757839188950,3.6,246.65,246.63,6.79]
[1757839189750,3.6,246.7,246.62,0.02968686]
[1757839189947,1.30144487,246.71,246.62,0.02968686]
[1757839189948,3.6,246.68,246.62,0.02968686]
[1757839190149,2.84617235,246.67,246.62,0.02968686]
[1757839190449,3.6,246.65,246.62,0.02968686]
[1757839190644,1.30144487,246.71,246.62,0.02968686]
[1757839190846,6.44606705,246.7,246.62,0.02968686]
[1757839191144,1.30144487,246.71,246.62,0.02968686]
[1757839191145,3.6,246.68,246.62,0.02968686]
[1757839191346,2.84606705,246.67,246.62,0.02968686]
[1757839191540,3.6,246.65,246.62,0.02968686]
[1757839191749,3.6,246.7,246.62,0.02968686]
[1757839191945,3.6,246.68,246.62,0.02968686]
[1757839192149,2.84594877,246.67,246.62,0.02968686]
[1757839192443,3.6,246.65,246.62,0.02968686]
[1757839192648,3.6,246.7,246.62,0.02968686]
[1757839192849,3.6,246.68,246.62,0.02968686]
[1757839193149,3.6,246.66,246.62,0.02968686]
[1757839193341,3.6,246.64,246.62,0.02968686]
[1757839195954,1.30144487,246.67,246.62,0.02968686]
[1757839196256,6.46645101,246.66,246.62,0.02968686]
[1757839196557,2.84645101,246.65,246.62,0.02968686]
[1757839196862,4.92144487,246.63,246.62,0.02968686]
[1757839197056,7.76789588,246.63,246.62,0.02968686]
[1757839208663,6.46645101,246.63,246.62,0.02968686]
[1757839212667,7.76789588,246.63,246.62,0.02968686]
[1757839216875,55.97,246.68,246.62,6.40968686]
[1757839217063,3.61,246.66,246.63,6.38]
[1757839217266,2.83844064,246.65,246.63,6.38]
[1757839217470,6.44844064,246.65,246.63,6.38]
[1757839217673,3.61,246.65,246.63,6.38]
[1757839218676,3.61,246.65,246.62,0.02968686]
[1757839218971,3.61,246.65,246.62,6.40968686]
[1757839219173,3.61,246.64,246.62,6.40968686]
[1757839219873,3.61,246.63,246.62,0.02968686]
[1757839222273,6.45122335,246.63,246.62,0.02968686]
[1757839230278,6.45442759,246.63,246.62,0.02968686]
[1757839238382,2.84442759,246.63,246.62,6.86968686]
[1757839238683,2.84842049,246.63,246.62,6.86968686]
[1757839261997,6.46842049,246.63,246.62,0.02968686]
[1757839262197,7.30170245,246.63,246.62,0.02968686]
[1757839273007,3.62,246.62,246.55,7.03]
[1757839273206,0.83328196,246.57,246.47,7.03]
[1757839273402,2.84842049,246.56,246.47,7.03]
[1757839273606,0.83328196,246.57,246.47,7.03]
[1757839273806,2.83468474,246.56,246.47,7.03]
[1757839274110,0.83328196,246.57,246.47,7.03]
[1757839274311,0.02896575,246.54,246.47,7.03]
[1757839295627,3.65,246.66,246.5,1.30255489]
[1757839295830,2.83105383,246.65,246.51,6.44]
[1757839296019,2.83105383,246.64,246.51,6.44]
[1757839296220,2.83105383,246.63,246.51,6.44]
[1757839296421,2.83105383,246.62,246.51,6.44]
[1757839296626,3.65,246.66,246.51,6.44]
[1757839296925,2.8309761,246.65,246.51,6.44]
[1757839297124,2.8309761,246.64,246.51,6.44]
[1757839297324,2.8309761,246.63,246.51,6.44]
[1757839297522,2.8309761,246.62,246.51,6.44]
[1757839297724,3.65,246.66,246.56,6.44]
[1757839297925,2.83098309,246.65,246.56,6.44]
[1757839298123,2.83098309,246.64,246.56,6.44]
[1757839298318,2.83098309,246.63,246.56,6.44]
[1757839298518,3.65,246.66,246.56,6.44]
[1757839298722,2.83096074,246.65,246.56,6.44]
[1757839299028,2.83096074,246.64,246.56,6.44]
[1757839299226,3.65,246.66,246.56,6.44]
[1757839299428,2.83068671,246.65,246.56,6.44]
[1757839299627,2.83068671,246.64,246.56,6.44]
[1757839299828,3.65,246.66,246.56,6.44]
[1757839300028,2.83068671,246.65,246.56,6.44]
[1757839300327,2.83068671,246.64,246.56,6.44]
[1757839300528,3.65,246.66,246.56,6.44]
[1757839300829,2.83050264,246.65,246.56,6.44]
[1757839301028,2.83050264,246.64,246.56,6.44]
[1757839301227,3.65,246.64,246.56,6.44]
[1757839301527,2.83040817,246.63,246.56,6.44]
[1757839301727,3.65,246.64,246.56,6.44]
[1757839301923,2.83040817,246.63,246.56,6.44]
[1757839302121,3.65,246.64,246.56,6.44]
[1757839302324,2.83059365,246.63,246.56,6.44]
[1757839302524,3.65,246.64,246.56,6.44]
[1757839302726,2.83038124,246.63,246.56,6.44]
[1757839302926,3.65,246.64,246.56,6.44]
[1757839303127,2.83038124,246.63,246.56,6.44]
[1757839303331,3.65,246.64,246.56,6.44]
[1757839303521,2.83034025,246.63,246.56,6.44]
[1757839303727,3.65,246.64,246.56,6.44]
[1757839304029,2.83034025,246.63,246.56,6.44]
[1757839304231,3.65,246.64,246.56,6.44]
[1757839304431,2.83029951,246.63,246.56,6.44]
[1757839304732,3.65,246.64,246.56,6.44]
[1757839304928,2.83029951,246.63,246.56,6.44]
[1757839305128,3.65,246.64,246.56,6.44]
[1757839305329,2.83029951,246.63,246.56,6.44]
[1757839305529,3.65,246.64,246.56,6.44]
[1757839305732,2.83012011,246.63,246.56,6.44]
[1757839305934,3.65,246.64,246.56,6.44]
[1757839306232,2.83012011,246.63,246.56,6.44]
[1757839306433,3.65,246.64,246.56,6.44]
[1757839306631,2.83008222,246.63,246.56,6.44]
[1757839306930,3.65,246.64,246.56,6.44]
[1757839307130,2.83008222,246.63,246.56,6.44]
[1757839307332,3.65,246.64,246.56,6.44]
[1757839307532,2.82986956,246.63,246.56,6.44]
[1757839307732,3.65,246.64,246.56,6.44]
[1757839307923,2.82986956,246.63,246.56,6.44]
[1757839308124,3.65,246.64,246.56,6.44]
[1757839308327,2.8296264,246.63,246.56,6.44]
[1757839308529,3.65,246.64,246.56,6.44]
[1757839308724,2.8296264,246.63,246.56,6.44]
[1757839308928,3.65,246.64,246.56,6.44]
[1757839309130,2.8296264,246.63,246.56,6.44]
[1757839309336,3.65,246.64,246.56,6.44]
[1757839309535,2.82940225,246.63,246.56,6.44]
[1757839309735,3.65,246.64,246.56,6.44]
[1757839309935,2.82940225,246.63,246.56,6.44]
[1757839310236,3.65,246.64,246.56,6.44]
[1757839310433,2.82919581,246.63,246.56,6.44]
[1757839310630,3.65,246.64,246.56,6.44]
[1757839310933,2.82919581,246.63,246.56,6.44]
[1757839311134,3.65,246.64,246.56,6.44]
[1757839311335,2.82909666,246.63,246.56,6.44]
[1757839311635,3.65,246.64,246.56,6.44]
[1757839311829,2.82901564,246.63,246.56,6.44]
[1757839312026,3.65,246.64,246.56,6.44]
[1757839312236,2.82901564,246.63,246.56,6.44]
[1757839312433,3.65,246.64,246.56,6.44]
[1757839317138,2.82831622,246.63,246.56,6.44]
[1757839317339,2.82827118,246.62,246.56,6.44]
[1757839317641,3.65,246.64,246.56,6.44]
[1757839317842,2.82827118,246.63,246.56,6.44]
[1757839318144,2.82827118,246.62,246.56,6.44]
[1757839318343,3.65,246.64,246.56,6.44]
[1757839318645,2.82827296,246.63,246.56,6.44]
[1757839318843,2.82827296,246.62,246.56,6.44]
[1757839319040,3.65,246.64,246.56,6.44]
[1757839319240,2.82827296,246.63,246.56,6.44]
[1757839319440,2.82827296,246.62,246.56,6.44]
[1757839319645,3.65,246.64,246.56,6.44]
[1757839319842,2.8282981,246.63,246.56,6.44]
[1757839320143,2.8282981,246.62,246.56,6.44]
[1757839320443,3.65,246.64,246.56,6.44]
[1757839320643,2.8283297,246.63,246.56,6.44]
[1757839320843,2.8283297,246.62,246.56,6.44]
[1757839321143,3.65,246.62,246.56,6.44]
[1757839326748,2.8377926,246.61,246.55,0.02867165]
[1757839326947,3.65,246.62,246.56,6.52]
[1757839327148,2.8377926,246.61,246.56,6.52]
[1757839327345,3.65,246.62,246.56,6.52]
[1757839327540,2.83804316,246.61,246.56,6.52]
[1757839327746,3.65,246.62,246.56,6.52]
[1757839327944,2.83804316,246.61,246.55,0.02867165]
[1757839328144,3.65,246.62,246.56,6.52]
[1757839328344,2.83832415,246.61,246.56,6.52]
[1757839328546,3.65,246.62,246.56,6.52]
[1757839332252,2.83959446,246.61,246.56,6.52]
[1757839332550,3.65,246.62,246.56,6.52]
[1757839332750,2.83966175,246.61,246.55,0.02867165]
[1757839332951,3.65,246.62,246.56,6.52]
[1757839333252,2.83966175,246.61,246.55,0.02867165]
[1757839333453,3.65,246.62,246.56,6.52]
[1757839333650,2.84014726,246.61,246.56,6.52]
[1757839333847,3.65,246.62,246.56,6.52]
[1757839334151,2.84014726,246.61,246.55,0.02867165]
[1757839334348,3.65,246.62,246.56,6.52]
[1757839334549,2.84049802,246.61,246.56,6.52]
[1757839334749,3.65,246.62,246.56,6.52]
[1757839334950,2.84049802,246.61,246.55,0.02867165]
[1757839335150,3.65,246.62,246.56,6.52]
[1757839335351,2.84099985,246.61,246.56,6.52]
[1757839335551,3.65,246.62,246.56,6.52]
[1757839335752,2.84099985,246.61,246.56,6.52]
[1757839335953,3.65,246.62,246.56,6.52]
[1757839336150,2.84099985,246.61,246.56,6.52]
[1757839336351,3.65,246.62,246.56,6.52]
[1757839336551,2.84171309,246.61,246.55,0.02867165]
[1757839336750,3.65,246.62,246.56,6.52]
[1757839337050,2.84171309,246.61,246.56,6.52]
[1757839337355,2.8425758,246.6,246.56,6.52]
[1757839337653,3.65,246.62,246.56,6.52]
[1757839337853,2.8425758,246.61,246.56,6.52]
[1757839338053,2.8425758,246.6,246.55,0.02867165]
[1757839338254,3.65,246.62,246.56,6.52]
[1757839338449,2.84368322,246.61,246.56,6.52]
[1757839338653,2.84368322,246.6,246.56,6.52]
[1757839338853,3.65,246.62,246.56,6.52]
[1757839339055,2.84368322,246.61,246.56,6.52]
[1757839339250,2.84368322,246.6,246.55,0.02867165]
[1757839339454,3.65,246.62,246.56,6.52]
[1757839339756,2.84473096,246.61,246.56,6.52]
[1757839339956,2.84473096,246.6,246.56,6.52]
[1757839340156,3.65,246.63,246.56,6.52]
[1757839340455,2.84664518,246.62,246.56,6.52]
[1757839340652,2.84664518,246.61,246.56,6.52]
[1757839340859,3.65,246.59,246.56,6.52]
[1757839341054,3.65,246.74,246.56,6.52]
[1757839341255,3.65,246.71,246.56,6.52]
[1757839341455,3.65,246.69,246.56,6.52]
[1757839341760,2.84633057,246.68,246.62,6.52]
[1757839341951,2.84633057,246.67,246.61,0.02588818]
[1757839342150,6.49633057,246.66,246.62,6.52]
[1757839342356,2.84633057,246.65,246.61,0.02588818]
[1757839342659,3.65,246.66,246.61,0.02588818]
[1757839342854,3.65,246.66,246.62,6.52]
[1757839343056,3.65,246.66,246.61,0.02588818]
[1757839343251,0.83280004,246.69,246.62,6.52]
[1757839343456,6.47833415,246.68,246.62,6.52]
[1757839343649,6.47833415,246.67,246.61,6.54588818]
[1757839343850,6.47833415,246.66,246.61,0.02588818]
[1757839344053,2.82833415,246.65,246.62,6.52]
[1757839344253,3.65,246.66,246.62,6.52]
[1757839344449,2.82793335,246.65,246.61,0.02588818]
[1757839344652,3.65,246.66,246.61,0.02588818]
[1757839344653,3.65,246.68,246.61,6.54588818]
[1757839344860,6.47793335,246.67,246.61,6.54588818]
[1757839345061,3.65,246.65,246.62,6.52]
[1757839346361,3.65,246.65,246.61,0.02588818]
[1757839346760,3.65,246.65,246.62,6.52]
[1757839346963,3.65,246.65,246.61,0.02588818]
[1757839347366,3.65,246.68,246.62,6.52]
[1757839347563,2.82681239,246.67,246.62,6.52]
[1757839347865,6.47681239,246.66,246.61,0.02588818]
[1757839348066,3.65,246.66,246.61,0.02588818]
[1757839348360,3.65,246.66,246.62,6.51]
[1757839348561,3.65,246.66,246.61,0.02588818]
[1757839348761,3.65,246.66,246.62,6.51]
[1757839349366,3.65,246.66,246.61,0.02588818]
[1757839350462,3.65,246.66,246.62,6.51]
[1757839350658,3.65,246.66,246.61,0.02588818]
[1757839350863,3.65,246.66,246.62,6.51]
[1757839351567,3.63,246.68,246.62,6.51]
[1757839351769,2.82552408,246.67,246.62,6.51]
[1757839351964,3.63,246.68,246.62,6.51]
[1757839352166,2.82552408,246.67,246.62,6.51]
[1757839352364,3.63,246.68,246.62,6.51]
[1757839352567,6.45529081,246.67,246.61,6.53588818]
[1757839352767,3.63,246.67,246.61,6.53588818]
[1757839355166,0.83280004,246.69,246.61,6.53588818]
[1757839355361,2.8322316,246.68,246.61,6.53588818]
[1757839355566,3.63,246.71,246.61,6.53588818]
[1757839355766,0.83280004,246.69,246.61,6.53588818]
[1757839355965,2.83206117,246.68,246.61,6.53588818]
[1757839356165,0.83280004,246.69,246.61,6.53588818]
[1757839356371,2.83180364,246.68,246.61,6.53588818]
[1757839356566,4.46280004,246.69,246.61,6.53588818]
[1757839356773,2.83180323,246.68,246.61,6.53588818]
[1757839357072,2.83201663,246.67,246.61,6.53588818]
[1757839357272,3.63,246.67,246.61,6.53588818]
[1757839357474,4.46280004,246.67,246.61,6.53588818]
[1757839357668,2.83201871,246.66,246.61,6.53588818]
[1757839357972,3.63,246.66,246.61,6.53588818]
[1757839358172,0.83280004,246.67,246.61,6.53588818]
[1757839358473,2.83194999,246.66,246.61,6.53588818]
[1757839358674,3.63,246.66,246.61,6.53588818]
[1757839358972,0.83280004,246.67,246.61,6.53588818]
[1757839359172,2.83194999,246.66,246.61,6.53588818]
[1757839359373,0.83280004,246.67,246.61,0.02588818]
[1757839359574,3.63,246.65,246.62,6.51]
[1757839360374,0.83280004,246.67,246.62,6.51]
[1757839360575,3.63,246.65,246.61,0.02588818]
[1757839360775,3.63,246.63,246.61,0.02588818]
[1757839361571,3.63,246.63,246.61,6.53588818]
[1757839365076,3.63,246.63,246.61,0.02588818]
[1757839368180,0.83280004,246.64,246.61,0.02588818]
[1757839368479,6.4629575,246.63,246.61,0.02588818]
[1757839368679,3.63,246.63,246.61,0.02588818]
[1757839370078,3.63,246.63,246.61,6.53588818]
[1757839371077,3.63,246.63,246.61,0.02588818]
[1757839371378,0.83280004,246.64,246.61,0.02588818]
[1757839371581,0.83280004,246.64,246.62,6.51]
[1757839371980,0.83280004,246.64,246.61,0.02588818]
[1757839372183,0.83280004,246.64,246.62,6.51]
[1757839372574,0.83280004,246.67,246.62,6.51]
[1757839372779,2.83307909,246.66,246.62,6.51]
[1757839373079,0.83280004,246.67,246.55,6.51]
[1757839373277,0.83280004,246.68,246.63,6.51]
[1757839373478,2.83318265,246.67,246.62,0.02752712]
[1757839373673,0.83280004,246.68,246.62,0.02752712]
[1757839373877,6.46318224,246.67,246.63,6.51]
[1757839374075,3.63,246.67,246.63,6.53]
[1757839374286,6.46319729,246.66,246.63,6.53]
[1757839374582,3.63,246.66,246.63,6.53]
[1757839377488,2.83373322,246.65,246.63,6.53]
[1757839377790,3.63,246.66,246.63,6.53]
[1757839377988,2.83373322,246.65,246.63,6.66]
[1757839378189,3.63,246.66,246.63,6.66]
[1757839378390,2.83392686,246.65,246.63,6.66]
[1757839378588,3.63,246.66,246.63,6.66]
[1757839378791,2.83392686,246.65,246.63,6.66]
[1757839379088,3.63,246.66,246.63,6.66]
[1757839379288,2.83392686,246.65,246.63,6.66]
[1757839379490,3.63,246.66,246.63,6.66]
[1757839379790,2.83414228,246.65,246.63,6.66]
[1757839379982,3.63,246.66,246.62,0.02752712]
[1757839380187,2.83414228,246.65,246.63,6.66]
[1757839380388,3.63,246.66,246.62,0.02752712]
[1757839380587,2.83431989,246.65,246.63,6.66]
[1757839380779,3.63,246.66,246.63,6.66]
[1757839380984,2.83431989,246.65,246.63,6.66]
[1757839381182,0.83280004,246.68,246.62,0.02752712]
[1757839381381,2.83458718,246.67,246.62,0.02752712]
[1757839381589,2.83458718,246.66,246.62,6.68752712]
[1757839381788,6.48458718,246.65,246.62,6.68752712]
[1757839381987,3.65,246.65,246.62,6.68752712]
[1757839382490,3.65,246.65,246.63,6.66]
[1757839383786,4.48280004,246.68,246.62,6.68752712]
[1757839383992,3.65,246.66,246.63,6.66]
[1757839384189,2.83526688,246.65,246.63,6.66]
[1757839384490,2.83526688,246.64,246.63,6.66]
[1757839389996,4.48280004,246.69,246.63,6.66]
[1757839390293,2.83944963,246.68,246.62,0.02752712]
[1757839390491,2.83944963,246.67,246.63,6.66]
[1757839390692,2.83944963,246.66,246.63,6.66]
[1757839390995,2.83944963,246.65,246.62,0.02752712]
[1757839391195,4.48280004,246.69,246.63,6.66]
[1757839391494,4.48280004,246.69,246.62,0.02752712]
[1757839391495,2.83952347,246.68,246.62,0.02752712]
[1757839391695,6.48952347,246.67,246.62,0.02752712]
[1757839391890,2.83952347,246.66,246.62,0.02752712]
[1757839392092,0.83280004,246.7,246.63,6.66]
[1757839392290,2.83913375,246.69,246.63,6.66]
[1757839392486,2.83913375,246.68,246.63,6.66]
[1757839392686,2.83913375,246.67,246.63,6.66]
[1757839392896,0.83280004,246.7,246.63,6.66]
[1757839393095,2.83059797,246.69,246.63,6.66]
[1757839393296,2.83059797,246.68,246.63,6.66]
[1757839393493,2.83059797,246.67,246.63,6.66]
[1757839393694,3.65,246.71,246.63,6.66]
[1757839393892,2.83040696,246.7,246.63,6.66]
[1757839394094,2.83040696,246.69,246.63,6.66]
[1757839394393,2.83040696,246.68,246.63,6.66]
[1757839394594,2.83040696,246.67,246.63,6.66]
[1757839394795,3.65,246.71,246.63,6.66]
[1757839395098,2.83021201,246.7,246.63,6.66]
[1757839395297,2.83021201,246.69,246.63,6.66]
[1757839395488,2.83021201,246.68,246.63,6.66]
[1757839395689,2.83021201,246.67,246.63,6.66]
[1757839395898,3.65,246.71,246.63,6.66]
[1757839396096,2.83002799,246.7,246.63,6.66]
[1757839396296,2.83002799,246.69,246.63,6.66]
[1757839396598,2.83002799,246.68,246.63,6.66]
[1757839396906,3.65,246.71,246.63,6.66]
[1757839397105,2.82985379,246.7,246.63,6.66]
[1757839397400,2.82985379,246.69,246.63,6.66]
[1757839397705,2.82985379,246.68,246.63,6.66]
[1757839397907,3.65,246.71,246.63,6.66]
[1757839398107,2.82968837,246.7,246.63,6.66]
[1757839398404,2.82968837,246.69,246.63,6.66]
[1757839398605,2.82968837,246.68,246.63,6.66]
[1757839398905,3.65,246.71,246.63,6.66]
[1757839399095,2.82953093,246.7,246.63,6.66]
[1757839399303,2.82953093,246.69,246.63,6.66]
[1757839399509,3.65,246.71,246.63,6.66]
[1757839399510,2.82953093,246.68,246.63,6.66]
[1757839399707,3.65,246.71,246.63,6.66]
[1757839399903,2.82929585,246.7,246.63,6.66]
[1757839400209,3.65,246.71,246.63,6.66]
[1757839406214,3.65,246.74,246.63,6.66]
[1757839406413,2.82522747,246.73,246.63,6.66]
[1757839406607,2.82522747,246.72,246.63,6.66]
[1757839406814,3.65,246.74,246.63,6.66]
[1757839407013,2.82522747,246.73,246.63,6.66]
[1757839407316,2.82522747,246.72,246.63,6.66]
[1757839407511,3.65,246.74,246.63,6.66]
[1757839407712,3.63,246.72,246.63,6.66]
[1757839425430,4.93091551,246.79,246.63,6.66]
[1757839425731,3.63,246.77,246.63,6.66]
[1757839425932,2.83248466,246.76,246.63,6.66]
[1757839426131,3.63,246.77,246.63,6.66]
[1757839426334,2.83229376,246.76,246.63,6.66]
[1757839426532,3.63,246.77,246.68,6.92]
[1757839426732,2.83229376,246.76,246.68,6.92]
[1757839426930,3.63,246.77,246.68,6.92]
[1757839427131,2.83229376,246.76,246.68,6.92]
[1757839427331,3.63,246.77,246.68,6.92]
[1757839427532,2.83208808,246.76,246.68,6.92]
[1757839427729,3.63,246.77,246.68,6.92]
[1757839427929,2.83208808,246.76,246.68,6.92]
[1757839428135,3.63,246.77,246.68,6.92]
[1757839428431,2.83198136,246.76,246.68,6.92]
[1757839428633,3.63,246.77,246.68,6.92]
[1757839430635,1.30091551,246.79,246.68,6.92]
[1757839431742,4.94091551,246.79,246.68,6.92]
[1757839436048,3.64,246.79,246.68,6.92]
[1757839436450,3.64,246.79,246.7,6.92]
[1757839437151,3.64,246.79,246.72,0.02560467]
[1757839437454,3.64,246.79,246.72,6.94560467]
[1757839440946,1.30091551,246.83,246.72,6.94560467]
[1757839441146,3.64,246.82,246.72,6.94560467]
[1757839454853,3.64,246.87,246.74,6.82]
[1757839455052,1.30091551,246.89,246.74,6.82]
[1757839455251,3.64,246.88,246.74,6.82]
[1757839455654,3.64,246.88,246.79,0.02834329]
[1757839455854,3.64,246.86,246.79,0.02834329]
[1757839457060,4.94091551,246.86,246.79,0.02834329]
[1757839461262,3.64,246.84,246.79,0.02834329]
[1757839462763,3.64,246.87,246.8,6.82]
[1757839473972,0.83178859,246.88,246.8,6.82]
[1757839474170,3.64,246.86,246.8,6.82]
[1757839481875,2.82301406,246.85,246.8,6.82]
[1757839482071,3.64,246.86,246.8,6.82]
[1757839482271,7.29505881,246.85,246.79,6.69834329]
[1757839482467,4.47178859,246.85,246.79,6.69834329]
[1757839482675,3.64,246.81,246.79,6.69834329]
[1757839483974,3.64,246.81,246.79,0.02834329]
[1757839485574,3.64,246.81,246.79,6.69834329]
[1757839486677,3.64,246.81,246.79,0.02834329]
[1757839486976,3.64,246.81,246.79,6.69834329]
[1757839488075,3.64,246.81,246.79,0.02834329]
[1757839488468,6.46474141,246.8,246.79,0.02834329]
[1757839489575,3.64,246.8,246.79,0.02834329]
[1757839491976,6.46394019,246.8,246.79,0.02834329]
[1757839496782,2.82394019,246.8,246.79,6.87834329]
[1757839496985,3.64,246.85,246.79,6.87834329]
[1757839497182,2.82125762,246.84,246.79,6.87834329]
[1757839497382,2.82125762,246.83,246.79,0.02834329]
[1757839497584,4.47178859,246.86,246.79,6.87834329]
[1757839497779,2.82123423,246.85,246.79,6.87834329]
[1757839497979,6.45123423,246.84,246.79,0.02834329]
[1757839498278,3.63,246.84,246.8,6.79]
[1757839498476,3.63,246.84,246.79,0.02834329]
[1757839498679,3.63,246.84,246.8,6.79]
[1757839498880,3.63,246.84,246.79,0.02834329]
[1757839499078,3.63,246.84,246.8,6.79]
[1757839499287,3.63,246.84,246.79,0.02834329]
[1757839499977,3.63,246.84,246.8,6.79]
[1757839500182,3.63,246.84,246.79,0.02834329]
[1757839500377,4.46178859,246.87,246.8,6.79]
[1757839500578,2.82099907,246.86,246.8,6.79]
[1757839500883,2.82082905,246.85,246.8,6.79]
[1757839501184,3.63,246.87,246.79,6.81834329]
[1757839501380,0.83178859,246.85,246.79,6.81834329]
[1757839501586,3.63,246.83,246.79,6.81834329]
[1757839501885,3.63,246.83,246.8,6.79]
[1757839503375,3.63,246.83,246.79,0.02834329]
[1757839503580,3.63,246.83,246.8,6.79]
[1757839503782,0.83178859,246.85,246.8,6.79]
[1757839503981,3.63,246.83,246.8,6.79]
[1757839504788,0.83178859,246.85,246.8,6.79]
[1757839504986,3.63,246.83,246.8,6.79]
[1757839505189,3.63,246.84,246.8,6.79]
[1757839505387,0.83178859,246.85,246.8,6.79]
[1757839505694,3.63,246.83,246.8,6.79]